bitfinex/quotes_ETHUSD_20241106
["timestamp","ask_amount","ask_price","bid_price","bid_amount"]
[1730854331447,4.01254,2492.2,2491.4,4.0138]
[1730854331448,4.01295,2492.0,2491.4,4.0138]
[1730854331764,4.01269,2492.1,2491.6,0.7998]
[1730854331963,8.02526,2492.2,2491.6,4.81316]
[1730854332163,8.02526,2492.2,2491.1,4.01424]
[1730854332164,0.3853,2492.4,2491.2,0.55]
[1730854332347,4.01326,2491.8,2491.1,4.81408]
[1730854332556,4.01326,2491.8,2491.2,4.01398]
[1730854332767,4.01285,2492.0,2491.3,4.01394]
[1730854332968,4.01318,2491.8,2491.3,4.01394]
[1730854333283,4.01318,2491.8,2491.2,4.01412]
[1730854333452,0.825038,2492.4,2491.4,4.01377]
[1730854333839,4.01284,2492.0,2491.4,4.01377]
[1730854334035,4.01284,2492.0,2491.4,4.01372]
[1730854334236,4.01284,2492.0,2491.2,0.882806]
[1730854334237,4.05140067,2491.9,2491.3,4.56396]
[1730854334480,4.01324,2491.8,2491.2,8.910826]
[1730854334649,4.01316,2491.8,2491.2,0.882806]
[1730854334983,0.03615581,2491.7,2491.1,0.7998]
[1730854335184,4.01335,2491.7,2491.1,0.7998]
[1730854335344,4.04966317,2491.6,2491.1,4.81397]
[1730854335544,4.04966317,2491.6,2490.9,4.01456]
[1730854335545,4.04966317,2491.6,2491.0,4.01436]
[1730854335788,4.01389,2491.4,2490.9,4.01456]
[1730854336089,4.0142,2491.2,2490.6,4.79198]
[1730854336237,4.0507784,2491.3,2490.7,4.01485]
[1730854336443,0.03651778,2491.1,2490.7,4.01485]
[1730854336739,0.03646929,2491.0,2490.6,0.7769]
[1730854337057,0.03646929,2491.0,2490.6,1.256104]
[1730854337250,0.03646929,2491.0,2490.2,4.0157]
[1730854337251,4.01469,2490.9,2490.2,0.7769]
[1730854337450,4.0146,2491.0,2490.2,4.79256]
[1730854337745,4.0146,2491.0,2489.8,4.01632]
[1730854337746,4.01523,2490.6,2490.0,4.01598]
[1730854337977,4.01526,2490.5,2489.9,4.01619]
[1730854338185,4.01552,2490.4,2489.7,4.0164]
[1730854338341,4.0508108,2490.4,2489.8,4.01637]
[1730854338543,4.01558,2490.3,2489.7,0.88314602]
[1730854338775,4.01578,2490.2,2489.7,0.88314602]
[1730854338988,0.03523473,2490.2,2489.6,0.7769]
[1730854339139,4.01605,2490.1,2489.6,0.7769]
[1730854339500,0.3853,2490.7,2489.5,0.0215802]
[1730854339501,4.01606,2490.0,2489.5,0.0215802]
[1730854339848,4.01658,2489.7,2489.5,0.0215802]
[1730854340167,4.0167,2489.6,2489.5,0.0215802]
[1730854340483,4.820028,2489.6,2489.5,0.0215802]
[1730854342238,8.215328,2489.6,2489.5,2e-07]
[1730854342437,8.205328,2489.6,2489.5,2e-07]
[1730854342675,8.215328,2489.6,2489.5,2e-07]
[1730854343306,8.215328,2489.6,2487.9,4.872749]
[1730854343307,4.01854,2488.5,2487.9,0.076449]
[1730854343460,4.01907,2488.2,2487.9,0.076449]
[1730854343902,4.01929,2488.0,2487.9,0.076449]
[1730854344061,5.0,2488.6,2487.9,0.076449]
[1730854344393,4.01897,2488.2,2487.5,4.01997]
[1730854344594,4.01927,2488.1,2487.5,4.824122]
[1730854344763,4.0193,2488.0,2487.5,0.804032]
[1730854344960,4.01903,2488.2,2487.4,0.08038804]
[1730854345165,4.01946,2487.9,2487.3,4.02036]
[1730854345391,4.01946,2487.9,2487.2,4.79739]
[1730854345592,8.03846,2488.1,2487.3,4.10080829]
[1730854345767,4.01921,2488.1,2487.3,4.02041]
[1730854345966,4.01877,2488.4,2487.5,4.01994]
[1730854346171,4.01856,2488.5,2487.4,4.02026]
[1730854346172,4.01856,2488.5,2487.7,4.01977]
[1730854346406,4.01824,2488.7,2488.1,4.01912]
[1730854346600,4.01824,2488.7,2487.4,4.02022]
[1730854346601,4.01899,2488.2,2487.4,0.7769]
[1730854346778,4.01872,2488.4,2487.6,4.01979]
[1730854346986,4.01872,2488.4,2487.7,4.56974]
[1730854347197,5.3853,2488.8,2487.7,4.56974]
[1730854347365,4.01909,2488.2,2487.6,35.0]
[1730854347702,0.3953,2488.8,2487.4,0.7769]
[1730854348009,4.01848,2488.5,2487.5,35.0]
[1730854348210,4.01924,2488.1,2487.4,0.7769]
[1730854348517,4.01947,2487.9,2487.4,0.7769]
[1730854349512,0.3853,2487.8,2487.2,4.02056]
[1730854349708,4.40493,2487.8,2487.1,4.02063]
[1730854349866,4.01963,2487.8,2487.1,39.83044824]
[1730854350067,4.01963,2487.8,2487.1,43.85109824]
[1730854350364,4.01982,2487.7,2487.1,35.0]
[1730854350571,4.02025,2487.5,2486.9,0.0565924]
[1730854350809,4.02024,2487.5,2486.9,0.1370036]
[1730854351003,4.02063,2487.2,2486.9,0.0565924]
[1730854351174,4.02025,2487.5,2486.9,0.0565924]
[1730854351508,4.02075,2487.1,2486.9,0.0565924]
[1730854351718,4.0209,2487.0,2486.9,0.0565924]
[1730854352207,0.402025,2487.5,2486.9,0.0565924]
[1730854352208,4.02075,2487.1,2486.9,0.0565924]
[1730854352811,4.02051,2487.3,2486.9,0.0565924]
[1730854353020,4.02019,2487.5,2486.9,0.0565924]
[1730854353173,4.02077,2487.1,2486.9,0.0565924]
[1730854353517,0.3353,2488.2,2487.0,0.8109]
[1730854353668,4.01931,2488.0,2487.1,0.55]
[1730854353866,4.01931,2488.0,2487.3,4.02029]
[1730854353867,8.03869,2488.0,2487.3,4.02029]
[1730854354104,4.0196,2487.9,2487.1,4.57058]
[1730854354412,0.3353,2488.2,2487.1,4.57058]
[1730854354413,0.3353,2488.2,2487.6,4.01993]
[1730854354641,4.01922,2488.1,2487.4,4.02026]
[1730854354930,4.01899,2488.2,2487.5,35.0]
[1730854355113,4.01899,2488.2,2487.5,39.01997]
[1730854355321,4.01921,2488.1,2487.5,35.0]
[1730854355515,4.01921,2488.1,2486.9,4.0776524]
[1730854355516,4.01993,2487.6,2486.9,0.0565924]
[1730854355715,4.01977,2487.7,2486.9,0.0565924]
[1730854355884,4.0209,2487.0,2486.9,0.0565924]
[1730854356092,4.02042,2487.3,2486.9,0.0565924]
[1730854356328,4.0209,2487.0,2486.9,0.0565924]
[1730854357413,4.02086,2487.1,2486.9,0.0565924]
[1730854358129,4.0209,2487.0,2486.9,0.0565924]
[1730854358889,4.02086,2487.1,2486.9,0.0565924]
[1730854359089,3.9709,2487.0,2486.9,0.0565924]
[1730854360444,4.770076,2487.0,2486.9,0.0565924]
[1730854362404,5.105376,2487.0,2486.9,0.0565924]
[1730854362632,5.115376,2487.0,2486.9,2.4e-06]
[1730854362819,8.105376,2487.0,2486.9,2.4e-06]
[1730854363007,4.3062,2487.0,2486.9,2.4e-06]
[1730854363212,3.9709,2487.0,2486.9,2.4e-06]
[1730854363940,4.02083,2487.1,2486.9,2.4e-06]
[1730854364245,4.0209,2487.0,2486.9,2.4e-06]
[1730854364842,4.01965,2487.8,2486.9,2.4e-06]
[1730854365047,4.0197,2487.8,2487.1,4.02065]
[1730854365233,4.0197,2487.8,2487.1,4.90543424]
[1730854365435,5.3353,2487.9,2487.0,0.8064]
[1730854365607,5.3353,2487.9,2486.9,2.4e-06]
[1730854365608,4.02051,2487.3,2486.9,2.4e-06]
[1730854366017,4.02078,2487.1,2486.9,2.4e-06]
[1730854366314,4.35597,2487.2,2486.9,2.4e-06]
[1730854366622,4.02054,2487.3,2486.7,3.9713924]
[1730854366819,4.02018,2487.5,2486.7,7.9926624]
[1730854367008,4.02018,2487.5,2486.8,4.02114]
[1730854367214,4.35519,2487.7,2486.7,3.9713924]
[1730854367443,4.02012,2487.5,2486.7,3.9713924]
[1730854367754,8.04032,2487.5,2486.7,7.9926924]
[1730854368048,0.3353,2487.7,2486.9,0.55]
[1730854368259,5.3353,2488.2,2487.1,4.02074]
[1730854368427,4.01969,2487.8,2487.1,8.04139]
[1730854368606,8.03941,2487.8,2487.2,35.0]
[1730854368811,4.01979,2487.7,2486.9,4.57096]
[1730854369007,4.02021,2487.5,2486.9,0.55]
[1730854369254,5.0,2487.9,2487.0,35.0]
[1730854369255,4.0205,2487.3,2487.0,35.0]
[1730854369611,4.02038,2487.4,2486.8,0.8064]
[1730854369810,4.02051,2487.3,2486.8,0.8064]
[1730854370034,4.02042,2487.3,2486.8,0.8064]
[1730854370355,4.02054,2487.3,2486.8,0.8064]
[1730854370780,4.02075,2487.1,2486.4,39.82813]
[1730854371059,4.02098,2487.0,2486.4,39.82813]
[1730854371212,5.3353,2486.7,2486.4,35.0]
[1730854371413,0.3353,2486.7,2485.8,2.08347184]
[1730854371716,0.804173,2487.0,2486.2,4.02209]
[1730854371913,0.402038,2487.4,2486.0,0.8064]
[1730854372155,4.02063,2487.2,2486.5,4.0216]
[1730854372338,8.04135,2487.2,2486.5,4.0216]
[1730854372647,9.35533,2487.6,2486.7,4.02139]
[1730854372849,9.35533,2487.6,2486.8,4.82763]
[1730854372850,4.0201,2487.5,2486.8,4.82763]
[1730854373059,8.04077,2487.4,2486.8,0.8064]
[1730854373241,4.02036,2487.4,2486.8,0.8064]
[1730854373551,4.0201,2487.5,2486.8,0.8064]
[1730854373845,8.37541,2487.6,2486.9,4.02103]
[1730854374353,4.02012,2487.5,2486.9,4.02103]
[1730854374550,4.02043,2487.3,2486.8,0.8064]
[1730854374709,4.02012,2487.5,2486.8,0.8064]
[1730854374913,4.02041,2487.4,2486.8,0.8064]
[1730854375113,4.02043,2487.3,2486.8,0.8064]
[1730854375925,5.3353,2487.9,2486.9,0.63041937]
[1730854376258,4.02018,2487.5,2486.9,4.57096]
[1730854376423,4.02018,2487.5,2486.8,0.8064]
[1730854376613,4.02052,2487.3,2486.8,0.8064]
[1730854377223,4.02006,2487.6,2486.9,0.55]
[1730854377465,4.55319,2487.8,2487.0,0.35754618]
[1730854377637,4.02043,2487.3,2486.9,0.35754618]
[1730854377827,4.02043,2487.3,2486.8,4.82759]
[1730854378249,4.02023,2487.5,2486.8,8.84873]
[1730854378250,8.04047,2487.5,2486.8,8.84873]
[1730854378473,4.0203,2487.4,2486.8,4.82754]
[1730854378759,4.01995,2487.6,2486.9,0.63041453]
[1730854378980,4.01995,2487.6,2487.0,4.0209]
[1730854378981,4.02019,2487.5,2487.0,4.0209]
[1730854379265,8.03998,2487.6,2487.0,4.0209]
[1730854379473,4.01995,2487.6,2487.0,4.0209]
[1730854379769,4.02018,2487.5,2486.9,4.57105]
[1730854379937,4.02018,2487.5,2486.8,4.82756]
[1730854380147,4.02028,2487.4,2486.8,4.82756]
[1730854380325,4.01962,2487.8,2486.8,0.8064]
[1730854380326,4.02089,2487.1,2486.8,0.8064]
[1730854380522,4.02084,2487.1,2486.8,0.8064]
[1730854380828,8.0417,2487.1,2486.8,0.8064]
[1730854381029,4.02084,2487.1,2486.8,0.8064]
[1730854381226,0.3353,2487.9,2486.8,0.8064]
[1730854381227,4.02062,2487.2,2486.8,0.8064]
[1730854381455,4.02029,2487.4,2486.9,4.02098]
[1730854381666,5.0,2487.8,2486.9,4.02098]
[1730854381964,4.3548,2487.9,2486.9,4.02098]
[1730854381965,0.3353,2487.9,2486.9,0.482738]
[1730854382263,0.3353,2487.9,2486.8,0.8064]
[1730854382264,4.0208,2487.1,2486.8,0.8064]
[1730854382561,4.01998,2487.6,2486.9,4.02105]
[1730854382562,4.02006,2487.6,2486.9,4.02105]
[1730854382767,4.02012,2487.5,2486.9,4.02105]
[1730854382978,4.01973,2487.8,2487.1,4.02065]
[1730854383263,5.53353,2488.1,2487.0,4.10127193]
[1730854383495,5.53353,2488.1,2487.1,4.02059]
[1730854383496,4.01961,2487.9,2487.1,4.02059]
[1730854383629,4.0193,2488.0,2487.3,4.02042]
[1730854383824,5.53353,2488.1,2487.4,4.10063865]
[1730854383825,9.01913,2488.1,2487.4,4.10063865]
[1730854384060,4.01851,2488.5,2487.5,0.814]
[1730854384061,4.01877,2488.4,2487.5,0.814]
[1730854384265,4.01877,2488.4,2487.6,0.55]
[1730854384450,5.0,2488.5,2486.7,0.814]
[1730854384451,0.3353,2487.8,2486.7,0.814]
[1730854384664,0.01,2488.7,2486.8,0.90775034]
[1730854384830,4.01807,2488.8,2487.6,0.814]
[1730854384831,4.01922,2488.1,2487.6,0.814]
[1730854385140,4.01914,2488.1,2487.6,0.814]
[1730854385325,4.0193,2488.0,2487.6,0.814]
[1730854385527,4.01939,2488.0,2487.6,0.814]
[1730854385876,5.3353,2488.5,2487.6,0.814]
[1730854385877,4.01891,2488.3,2487.6,0.814]
[1730854386072,4.01913,2488.1,2487.6,0.814]
[1730854386376,3.0,2488.7,2487.6,0.814]
[1730854386377,4.01803,2488.8,2487.7,0.63039515]
[1730854386528,4.01776,2489.0,2488.3,4.01871]
[1730854386731,9.0177,2489.0,2488.2,4.01894]
[1730854386976,4.01783,2488.9,2488.2,4.01894]
[1730854387132,4.01848,2488.5,2488.0,0.814]
[1730854387465,4.0182,2488.7,2488.0,4.83328]
[1730854387627,4.0182,2488.7,2488.0,0.814]
[1730854387825,4.018,2488.8,2488.1,4.01899]
[1730854388079,5.3353,2489.3,2488.3,4.01872]
[1730854388393,4.01794,2488.9,2488.1,4.56897]
[1730854388565,4.01763,2489.1,2488.5,4.01847]
[1730854388769,9.35261,2489.3,2488.1,4.56903]
[1730854388770,5.3353,2489.3,2488.1,4.56903]
[1730854388972,0.01,2489.6,2489.1,4.01739]
[1730854388973,5.0,2489.6,2489.1,4.01739]
[1730854389185,9.016,2490.1,2489.4,4.01702]
[1730854389697,4.0862964,2490.6,2489.4,4.01702]
[1730854389698,4.01568,2490.3,2489.5,0.08033364]
[1730854389844,4.01663,2489.7,2489.3,0.814]
[1730854390185,8.03261,2489.9,2489.3,0.814]
[1730854390391,4.01639,2489.8,2489.3,0.814]
[1730854390674,4.01688,2489.5,2489.3,0.814]
[1730854390887,5.0,2489.8,2488.9,0.814]
[1730854390888,4.01728,2489.3,2488.9,0.814]
[1730854391039,0.3353,2489.7,2488.9,0.814]
[1730854391367,0.0711564,2490.6,2488.9,0.814]
[1730854391368,4.01567,2490.3,2489.6,1.364]
[1730854391573,4.01558,2490.3,2489.6,0.814]
[1730854391879,4.917388,2490.2,2489.6,0.814]
[1730854392088,8.933258,2490.2,2489.6,0.814]
[1730854392308,4.0763664,2490.6,2489.7,0.0803297]
[1730854392610,4.01534,2490.5,2489.7,0.55]
[1730854392764,4.01534,2490.5,2489.8,4.01626]
[1730854392958,4.01534,2490.5,2489.8,4.01624]
[1730854393263,0.0611564,2490.6,2489.7,0.55]
[1730854393264,4.01558,2490.3,2489.7,0.55]
[1730854393610,0.0611564,2490.6,2489.9,4.01618]
[1730854393761,4.0763364,2490.6,2489.9,4.01618]
[1730854393961,4.0763364,2490.6,2489.9,8.03231]
[1730854394302,4.01526,2490.5,2489.9,4.01613]
[1730854394985,4.01526,2490.5,2489.7,4.01645]
[1730854395188,0.40764164,2490.4,2489.6,0.814]
[1730854395557,4.01625,2489.9,2489.6,0.814]
[1730854396010,5.0,2490.1,2489.1,4.01738]
[1730854396211,5.0,2490.1,2488.9,0.814]
[1730854396212,4.01703,2489.4,2488.9,0.814]
[1730854396518,4.01688,2489.5,2488.9,0.814]
[1730854396700,0.80337,2489.5,2488.9,0.814]
[1730854397275,4.01735,2489.2,2488.9,0.814]
[1730854397475,4.01766,2489.1,2488.9,0.814]
[1730854397774,4.01735,2489.2,2488.9,0.814]
[1730854398171,0.80337,2489.5,2488.9,0.814]
[1730854398172,4.01703,2489.4,2488.9,0.814]
[1730854398386,5.48204,2489.3,2488.2,0.7995]
[1730854398583,4.01764,2489.1,2488.3,4.01871]
[1730854398877,9.49927,2489.3,2488.6,4.0183]
[1730854398878,4.49933,2489.3,2488.6,4.0183]
[1730854399113,4.49933,2489.3,2488.8,0.7995]
[1730854399688,4.01745,2489.2,2488.8,0.7995]
[1730854400522,4.01777,2489.0,2488.8,0.7995]
[1730854400679,4.01783,2488.9,2488.8,0.7995]
[1730854401228,4.01769,2489.0,2488.5,4.01848]
[1730854401383,4.01769,2489.0,2488.4,0.7995]
[1730854401584,4.01792,2488.9,2488.4,4.81813]
[1730854401907,8.03319,2489.7,2489.1,4.56751]
[1730854402106,5.0,2490.2,2489.1,0.55]
[1730854402290,9.01586,2490.2,2489.4,0.55]
[1730854402617,4.01552,2490.4,2489.7,4.01646]
[1730854402830,0.0611564,2490.6,2489.9,0.55]
[1730854403027,0.0611564,2490.6,2490.1,4.01589]
[1730854403321,4.01569,2490.3,2489.8,0.55]
[1730854403520,4.01525,2490.5,2489.8,0.55]
[1730854403726,0.46876904,2490.6,2490.1,0.55]
[1730854404037,0.3353,2490.5,2489.2,0.7995]
[1730854404235,4.01704,2489.4,2488.7,0.7995]
[1730854404377,9.35184,2489.8,2488.7,0.7995]
[1730854404584,4.01581,2490.2,2489.3,4.81656]
[1730854404888,4.0155,2490.4,2489.7,4.01643]
[1730854405083,4.48394904,2490.6,2489.9,4.01614]
[1730854405084,8.49917904,2490.6,2489.9,4.01614]
[1730854405313,8.49917904,2490.6,2490.3,4.01544]
[1730854405314,0.0611564,2490.6,2490.3,4.01544]
[1730854405628,0.0611564,2490.6,2490.3,4.01548]
[1730854405940,0.0611564,2490.6,2490.5,0.7995]
[1730854409823,0.0611564,2490.6,2490.3,8.03096]
[1730854410125,0.0611564,2490.6,2490.5,4.01525]
[1730854410334,0.0611564,2490.6,2490.5,5.43134507]
[1730854410502,0.0611564,2490.6,2490.5,6.23084507]
[1730854411387,0.0611564,2490.6,2490.5,6.3111311]
[1730854411622,0.0611564,2490.6,2490.5,6.23084507]
[1730854412524,0.0611564,2490.6,2490.5,0.7995]
[1730854412728,0.0611564,2490.6,2490.5,4.81475]
[1730854413355,0.0611564,2490.6,2490.5,0.7995]
[1730854414023,0.0611564,2490.6,2490.5,4.81475]
[1730854414227,0.0611564,2490.6,2490.5,0.7995]
[1730854414393,0.0611564,2490.6,2490.5,0.87979448]
[1730854414588,0.0611564,2490.6,2490.5,1.28901045]
[1730854414818,0.0611564,2490.6,2490.5,5.38455135]
[1730854415000,0.0611564,2490.6,2490.5,5.93454016]
[1730854415221,0.0611564,2490.6,2490.5,5.85426045]
[1730854416491,0.0611564,2490.6,2490.5,40.85426045]
[1730854416892,0.0611564,2490.6,2490.5,40.36475]
[1730854417199,0.0611564,2490.6,2490.5,5.36475]
[1730854417419,0.3964564,2491.8,2491.4,0.55]
[1730854417420,0.0611564,2491.8,2491.4,0.55]
[1730854417595,4.0743164,2491.8,2491.4,0.55]
[1730854417793,0.0611564,2491.8,2491.3,0.55]
[1730854418033,4.0743464,2491.8,2491.3,0.55]
[1730854418339,4.01332,2491.7,2491.3,0.55]
[1730854418691,4.01334,2491.7,2491.3,0.55]
[1730854418892,4.01374,2491.5,2491.3,0.55]
[1730854419117,0.0611564,2491.8,2490.8,4.01467]
[1730854419118,4.0138,2491.4,2490.8,0.7995]
[1730854419293,4.0138,2491.4,2490.8,4.81414]
[1730854419495,4.01407,2491.3,2490.8,0.7995]
[1730854419894,4.01407,2491.3,2490.8,4.81423]
[1730854420400,4.01407,2491.3,2490.8,0.7995]
[1730854420595,4.01351,2491.6,2490.8,0.7995]
[1730854420596,4.01373,2491.5,2490.9,0.55]
[1730854420802,4.01373,2491.5,2491.1,0.55]
[1730854421037,4.01338,2491.7,2491.1,0.55]
[1730854421246,4.0743264,2491.8,2491.3,0.55]
[1730854421427,4.0743264,2491.8,2491.3,5.020278]
[1730854421643,0.0611564,2491.8,2491.7,4.01332]
[1730854421853,4.01197,2492.6,2492.0,4.01275]
[1730854422168,4.01234,2492.4,2491.8,4.56314]
[1730854422313,4.01228,2492.4,2491.8,0.55]
[1730854422649,8.02463,2492.4,2491.8,4.56312]
[1730854422848,4.01239,2492.3,2491.8,0.55]
[1730854423057,5.0,2492.7,2491.4,0.7995]
[1730854423058,5.0,2492.7,2491.6,0.55]
[1730854423242,4.01294,2492.0,2491.5,0.55]
[1730854423442,4.01292,2492.0,2491.5,0.55]
[1730854423756,4.0132,2491.8,2491.4,0.7995]
[1730854423962,5.0,2492.2,2491.4,0.7995]
[1730854424112,8.02622,2491.9,2491.4,0.7995]
[1730854424313,5.0,2492.2,2491.4,0.7995]
[1730854424314,4.01327,2491.8,2491.4,0.7995]
[1730854424811,4.01327,2491.8,2490.7,39.0149]
[1730854424812,4.01362,2491.6,2491.0,0.7995]
[1730854425049,4.0134,2491.7,2491.1,4.09441643]
[1730854425212,4.0131,2491.9,2491.2,4.01402]
[1730854425408,5.0,2492.2,2491.1,4.01414]
[1730854425409,4.01343,2491.7,2491.1,4.01414]
[1730854425715,4.01311,2491.9,2491.1,4.01414]
[1730854425964,4.01319,2491.8,2491.2,4.01404]
[1730854426180,4.01319,2491.8,2491.2,0.55]
[1730854426498,4.01335,2491.7,2491.2,0.55]
[1730854426712,8.02676,2491.7,2491.2,0.55]
[1730854426890,4.01312,2491.9,2491.2,0.55]
[1730854427076,9.01253,2492.2,2491.2,0.55]
[1730854427077,4.01356,2491.6,2491.2,0.55]
[1730854427396,4.947473,2492.1,2491.0,0.7995]
[1730854427397,4.01364,2491.5,2491.0,0.7995]
[1730854427600,9.01303,2491.9,2490.4,4.01535]
[1730854427601,4.01424,2491.2,2490.7,0.763]
[1730854427891,4.01462,2490.9,2490.7,0.763]
[1730854428203,4.01473,2490.9,2490.3,0.763]
[1730854428493,4.01441,2491.1,2490.4,4.01541]
[1730854428707,9.014,2491.3,2490.3,4.85882233]
[1730854428905,4.01429,2491.2,2490.3,0.84329233]
[1730854429199,4.01429,2491.2,2490.4,4.01528]
[1730854429357,4.01417,2491.2,2490.4,4.01528]
[1730854429556,4.01443,2491.1,2490.4,39.01528]
[1730854429769,4.34884,2491.6,2490.5,0.08029622]
[1730854429991,4.34825,2492.0,2490.6,0.763]
[1730854430204,4.34825,2492.0,2491.4,0.763]
[1730854430205,8.02588,2492.0,2491.4,0.763]
[1730854430361,4.01294,2492.0,2491.4,4.7768]
[1730854430564,4.01317,2491.8,2491.4,0.763]
[1730854430800,4.01313,2491.9,2491.4,0.763]
[1730854431121,4.01317,2491.8,2491.4,0.763]
[1730854431402,4.01317,2491.8,2491.1,0.763]
[1730854431613,8.02655,2491.8,2491.2,0.55]
[1730854431969,8.02653,2491.8,2491.2,0.55]
[1730854432189,4.01337,2491.7,2491.2,0.55]
[1730854432501,4.01325,2491.8,2491.2,0.55]
[1730854432502,4.0135,2491.6,2491.2,0.55]
[1730854432713,9.01253,2492.2,2490.8,4.56464]
[1730854432714,6.137962,2491.7,2490.8,4.56464]
[1730854432858,4.01389,2491.4,2490.8,0.55]
[1730854433457,4.014,2491.3,2490.8,0.55]
[1730854433669,4.01414,2491.2,2490.5,0.763]
[1730854433869,4.01448,2491.0,2490.5,0.763]
[1730854434110,4.0147,2490.9,2490.5,0.763]
[1730854434312,0.802918,2490.9,2489.9,4.01606]
[1730854434477,0.802918,2490.9,2490.1,0.763]
[1730854434683,4.01509,2490.6,2490.1,0.763]
[1730854434971,4.02382,2491.4,2489.5,4.02681]
[1730854434972,4.0128,2492.1,2491.3,4.01382]
[1730854435172,8.0258,2492.0,2491.2,0.763]
[1730854435423,4.01309,2491.9,2491.2,4.77711]
[1730854435882,4.01317,2491.8,2491.2,0.763]
[1730854436275,8.02642,2491.8,2491.2,0.763]
[1730854436606,5.0,2492.1,2491.2,0.763]
[1730854436810,4.01326,2491.8,2491.2,0.763]
[1730854437007,8.02654,2491.8,2491.2,0.763]
[1730854437213,4.01332,2491.7,2491.2,0.763]
[1730854437374,4.0136,2491.6,2490.8,0.763]
[1730854437707,4.0136,2491.6,2491.0,0.55]
[1730854437708,8.02717,2491.6,2491.0,0.55]
[1730854437908,0.3353,2491.4,2490.9,0.55]
[1730854438116,0.3353,2491.4,2490.5,4.01516]
[1730854438117,4.01408,2491.3,2490.5,4.01514]
[1730854438290,4.01421,2491.2,2490.5,4.01514]
[1730854438612,4.01446,2491.0,2490.4,0.763]
[1730854438908,4.01441,2491.1,2490.5,0.08029677]
[1730854439307,4.449101,2491.2,2490.5,0.08029677]
[1730854439521,4.01438,2491.1,2490.5,0.08029677]
[1730854439827,4.449101,2491.2,2490.5,4.09554677]
[1730854440129,4.34922,2491.4,2490.6,0.55]
[1730854440427,4.816098,2491.7,2490.9,4.01453]
[1730854440600,4.01357,2491.6,2490.6,4.01499]
[1730854440799,4.01413,2491.2,2490.7,0.55]
[1730854441067,4.01413,2491.2,2490.5,0.08028982]
[1730854441068,4.01424,2491.2,2490.5,0.08028982]
[1730854441321,4.01429,2491.1,2490.6,0.55]
[1730854441494,4.01445,2491.0,2490.5,0.55]
[1730854441828,8.02866,2491.1,2490.5,0.55]
[1730854441993,4.01429,2491.1,2490.5,0.55]
[1730854442392,4.01376,2491.5,2490.6,0.08029781]
[1730854442702,4.01412,2491.3,2490.8,0.55]
[1730854442898,4.01408,2491.3,2490.6,4.56502]
[1730854444528,8.02814,2491.3,2490.6,4.56502]
[1730854444686,8.02812,2491.3,2490.6,0.55]
[1730854444896,4.01412,2491.2,2490.4,0.763]
[1730854445140,4.01412,2491.2,2490.5,0.08029677]
[1730854445344,4.01412,2491.2,2490.4,4.77841]
[1730854445507,8.02836,2491.2,2490.4,4.85861819]
[1730854445836,4.01444,2491.1,2490.4,0.84329819]
[1730854446066,0.4022,2493.4,2490.7,4.01482]
[1730854446067,4.01372,2491.5,2490.7,4.01482]
[1730854446198,4.0135,2491.6,2490.7,4.01479]
[1730854446398,4.0135,2491.6,2490.8,0.55]
[1730854446739,4.01363,2491.6,2491.0,0.55]
[1730854446943,9.01288,2492.0,2490.9,0.08028272]
[1730854446944,8.02618,2491.9,2491.2,4.5641]
[1730854447141,0.01,2492.5,2491.6,4.56336]
[1730854447142,5.0,2492.3,2491.6,4.56336]
[1730854447349,5.0,2492.3,2491.7,4.78409]
[1730854447510,5.0,2492.5,2491.8,0.55]
[1730854447713,0.3353,2492.8,2492.2,4.01249]
[1730854447714,5.0,2492.8,2492.2,4.01249]
[1730854448038,5.0,2492.8,2492.4,0.55]
[1730854449002,5.0,2492.8,2492.3,0.7708]
[1730854449003,0.0611564,2493.0,2492.6,0.55]
[1730854449434,0.0611564,2493.0,2492.5,0.55]
[1730854450335,4.01165,2492.8,2492.3,0.7708]
[1730854450640,5.0,2492.9,2492.3,4.78315]
[1730854450842,5.90724864,2492.9,2492.3,4.78315]
[1730854451006,5.90724864,2492.9,2492.4,35.0]
[1730854451200,9.91866864,2492.9,2492.4,35.0]
[1730854451618,5.90724864,2492.9,2492.4,35.0]
[1730854451908,5.90724864,2492.9,2492.3,0.7708]
[1730854452216,4.01181,2492.7,2492.3,0.7708]
[1730854452444,4.6085005,2492.8,2492.3,0.7708]
[1730854452654,4.01166,2492.8,2492.3,0.7708]
[1730854452972,4.01182,2492.7,2492.3,0.7708]
[1730854453126,4.01177,2492.7,2492.3,0.7708]
[1730854453325,8.02336,2492.8,2492.3,0.7708]
[1730854453530,4.01166,2492.8,2492.3,0.7708]
[1730854453731,4.01143,2492.9,2492.3,0.7708]
[1730854453927,0.0611564,2493.0,2492.4,0.55]
[1730854454127,0.0611564,2493.0,2492.9,0.55]
[1730854454363,0.0611564,2493.0,2492.5,0.7708]
[1730854454927,0.0611564,2493.0,2492.6,4.56177]
[1730854455135,0.0611564,2493.0,2492.6,35.55]
[1730854455725,4.01155,2492.8,2492.5,0.7708]
[1730854455972,5.80839564,2492.8,2492.2,0.55]
[1730854456273,4.01275,2492.1,2491.7,0.7708]
[1730854456441,5.0,2492.2,2491.7,0.7708]
[1730854456767,5.0,2492.2,2491.4,0.7708]
[1730854456768,4.01325,2491.8,2491.4,0.7708]
[1730854457479,9.01317,2491.8,2491.4,0.7708]
[1730854457687,4.01348,2491.7,2491.4,0.7708]
[1730854457976,4.01348,2491.6,2491.1,0.7708]